[Event "Polish Youth 1st League 2022"]
[Site "Lublin"]
[Date "2022.07.02"]
[Round "8.24"]
[White "Kulczycka, Zofia"]
[Black "Matuszewska, Kinga"]
[Result "1-0"]
[ECO "C02"]
[WhiteElo "1564"]
[BlackElo "1085"]
[Annotator "NA RC"]
[PlyCount "63"]
[EventDate "2022.06.24"]
[EventType "team-tourn"]
[EventCountry "POL"]
[SourceTitle "playchess.com"]
[Source "ChessBase"]
[SourceQuality "1"]
[TimeControl "40/5400+30:1800+30"]

1. e4 {[%emt 0:00:03]} e6 {[%emt 0:00:07]} 2. d4 {[%emt 0:01:26]} d5 {[%emt 0:00:08]} 3. e5 {[%emt 0:00:08]} c5 {[%emt 0:00:11]} 4. c3 {[%emt 0:00:15]} Qb6 {[%emt 0:00:30]} 5. Nf3 {[%emt 0:01:56]} Bd7 {[%emt 0:00:34]} 6. Bd3 {[%emt 0:01:59]} Bb5 {[%emt 0:00:27]} 7. O-O {[%emt 0:06:30]} Nc6 {[%emt 0:01:24]} 8. Na3 {[%emt 0:06:51]} Bxd3 {[%emt 0:04:18]} 9. Qxd3 {[%emt 0:00:10]} cxd4 {[%emt 0:03:14]} 10. cxd4 {[%emt 0:02:32]} a6 {[%emt 0:01:48]} 11. Nc2 {[%emt 0:06:08]} Nge7 {[%emt 0:05:43]} 12. Ne3 {[%emt 0:05:38]} Ng6 {[%emt 0:09:20]} 13. h4 {[%emt 0:05:27]} Be7 {[%emt 0:06:31]} 14. g3 {[%emt 0:05:40]} Bd8 {[%emt 0:02:55]} 15. Bd2 {[%emt 0:07:18]} O-O {[%emt 0:07:59]} 16. h5 {[%emt 0:01:05]} Nge7 {[%emt 0:02:42]} 17. Ng5 {[%emt 0:12:29]} g6 {[%emt 0:03:18]} 18. Ng4 {[%emt 0:07:43]} Nf5 {[%emt 0:04:32]} 19. hxg6 {[%emt 0:02:11]} hxg6 {[%emt 0:16:26]} 20. Qf3 {[%emt 0:05:10]} Kg7 {[%emt 0:09:59]} 21. Nf6 {[%emt 0:02:26]} Rh8 {[%emt 0:06:39]} 22. g4 {[%emt 0:03:54]} Ncxd4 {[%emt 0:03:32]} 23. Qd3 {[%emt 0:01:34]} Nh4 {[%emt 0:03:37]} 24. Bc3 {[%emt 0:00:52]} Nc6 {[%emt 0:01:43]} 25. Qg3 {[%emt 0:01:14]} Be7 {[%emt 0:01:53]} 26. Qf4 {[%emt 0:01:16]} Qc7 {[%emt 0:01:45]} 27. Nh5+ {[%emt 0:11:05]} gxh5 {[%emt 0:01:42]} 28. Qxf7+ {[%emt 0:00:07]} Kh6 {[%emt 0:00:05]} 29. Qxh5+ {[%emt 0:00:51]} Kg7 {[%emt 0:00:16]} 30. Qf7+ {[%emt 0:00:21]} Kh6 {[%emt 0:00:04]} 31. Nxe6 {[%emt 0:00:50]} Raf8 {[%emt 0:01:31]} 32. Qh5# {[%emt 0:00:10]} 1-0

[Event "Polish Youth 1st League 2022"]
[Site "Lublin"]
[Date "2022.07.02"]
[Round "8.25"]
[White "Szlosarczyk, Hubert"]
[Black "Panek, Bartosz"]
[Result "0-1"]
[ECO "D53"]
[WhiteElo "1650"]
[BlackElo "2022"]
[Annotator "NA RC"]
[PlyCount "74"]
[EventDate "2022.06.24"]
[EventType "team-tourn"]
[EventCountry "POL"]
[SourceTitle "playchess.com"]
[Source "ChessBase"]
[SourceQuality "1"]
[TimeControl "40/5400+30:1800+30"]

1. d4 {[%emt 0:00:04]} Nf6 {[%emt 0:02:07]} 2. c4 {[%emt 0:00:53]} e6 {[%emt 0:00:06]} 3. Nc3 {[%emt 0:01:06]} d5 {[%emt 0:00:06]} 4. Bg5 {[%emt 0:01:19]} Be7 {[%emt 0:00:10]} 5. e3 {[%emt 0:01:17]} h6 {[%emt 0:00:06]} 6. Bh4 {[%emt 0:01:18]} O-O {[%emt 0:00:09]} 7. Qc2 {[%emt 0:01:49]} b6 {[%emt 0:00:23]} 8. cxd5 {[%emt 0:01:47]} Nxd5 {[%emt 0:04:18]} 9. Nxd5 {[%emt 0:04:01]} exd5 10. Bxe7 {[%emt 0:02:25]} Qxe7 {[%emt 0:00:55]} 11. Rc1 {[%emt 0:01:53]} Na6 {[%emt 0:06:40]} 12. Nf3 {[%emt 0:03:30]} c5 {[%emt 0:05:25]} 13. Be2 {[%emt 0:04:48]} Nb4 {[%emt 0:02:36]} 14. Qb1 {[%emt 0:03:05]} Qf6 {[%emt 0:22:32]} 15. b3 {[%emt 0:07:36]} Bf5 {[%emt 0:03:29]} 16. Qb2 {[%emt 0:00:10]} Nd3+ {[%emt 0:00:58]} 17. Bxd3 {[%emt 0:02:45]} Bxd3 {[%emt 0:00:06]} 18. Ne5 {[%emt 0:04:50]} Ba6 {[%emt 0:00:43]} 19. f4 {[%emt 0:04:47]} cxd4 {[%emt 0:16:34]} 20. Qxd4 {[%emt 0:02:15]} Qh4+ {[%emt 0:00:19]} 21. g3 {[%emt 0:10:19]} Qh5 {[%emt 0:02:14]} 22. Qd2 {[%emt 0:04:50]} d4 {[%emt 0:03:32]} 23. g4 {[%emt 0:02:36]} Qh3 {[%emt 0:01:50]} 24. exd4 {[%emt 0:01:42]} f6 {[%emt 0:00:16]} 25. Qc3 {[%emt 0:04:10]} Qxc3+ {[%emt 0:02:19]} 26. Rxc3 {[%emt 0:00:01]} fxe5 {[%emt 0:00:08]} 27. fxe5 {[%emt 0:00:16]} Rad8 {[%emt 0:01:32]} 28. Re3 {[%emt 0:01:07]} Rxd4 {[%emt 0:00:19]} 29. Rg1 {[%emt 0:00:22]} Re8 {[%emt 0:00:11]} 30. g5 {[%emt 0:00:36]} Rc8 {[%emt 0:07:48]} 31. Kf2 {[%emt 0:00:41]} Rc2+ {[%emt 0:00:06]} 32. Kg3 {[%emt 0:00:17]} hxg5 {[%emt 0:00:05]} 33. e6 {[%emt 0:00:43]} Kf8 {[%emt 0:00:52]} 34. a4 {[%emt 0:00:40]} Ke7 {[%emt 0:01:42]} 35. Rf3 {[%emt 0:00:26]} Rd3 {[%emt 0:00:35]} 36. Rxd3 {[%emt 0:00:30]} Bxd3 {[%emt 0:00:08]} 37. Rd1 {[%emt 0:00:18]} Rc3 {[%emt 0:01:22]} 0-1

[Event "Polish Youth 1st League 2022"]
[Site "Lublin"]
[Date "2022.07.02"]
[Round "8.26"]
[White "Kubik, Rafal"]
[Black "Kozlowski, Franciszek"]
[Result "1-0"]
[ECO "A01"]
[WhiteElo "1827"]
[BlackElo "1607"]
[Annotator "NA RC"]
[PlyCount "71"]
[EventDate "2022.06.24"]
[EventType "team-tourn"]
[EventCountry "POL"]
[SourceTitle "playchess.com"]
[Source "ChessBase"]
[SourceQuality "1"]
[TimeControl "40/5400+30:1800+30"]

1. b3 {[%emt 0:02:21]} d5 {[%emt 0:01:08]} 2. Bb2 {[%emt 0:00:44]} c5 {[%emt 0:01:47]} 3. e3 {[%emt 0:00:47]} Nc6 {[%emt 0:02:10]} 4. Bb5 {[%emt 0:01:08]} Bd7 {[%emt 0:02:24]} 5. c4 {[%emt 0:05:15]} a6 {[%emt 0:06:59]} 6. Bxc6 {[%emt 0:02:07]} Bxc6 {[%emt 0:00:30]} 7. Nf3 {[%emt 0:00:50]} e6 {[%emt 0:06:27]} 8. Ne5 {[%emt 0:03:35]} Qc7 {[%emt 0:02:33]} 9. O-O {[%emt 0:02:41]} O-O-O {[%emt 0:02:40]} 10. d4 {[%emt 0:05:02]} f6 {[%emt 0:02:07]} 11. Nxc6 {[%emt 0:00:41]} Qxc6 12. Nd2 {[%emt 0:01:22]} Kb8 {[%emt 0:02:12]} 13. cxd5 {[%emt 0:07:25]} Qxd5 {[%emt 0:00:59]} 14. e4 {[%emt 0:04:52]} Qd7 {[%emt 0:00:53]} 15. Nf3 {[%emt 0:01:56]} Nh6 {[%emt 0:04:54]} 16. Qe2 {[%emt 0:02:56]} cxd4 {[%emt 0:00:35]} 17. Bxd4 {[%emt 0:01:27]} e5 {[%emt 0:01:10]} 18. Bb6 {[%emt 0:03:47]} Rc8 {[%emt 0:00:11]} 19. a4 {[%emt 0:03:06]} Bc5 {[%emt 0:01:51]} 20. Ba5 {[%emt 0:02:11]} Qe6 {[%emt 0:02:09]} 21. Rab1 {[%emt 0:03:51]} Ka8 {[%emt 0:01:57]} 22. Rfd1 {[%emt 0:03:37]} Ng4 {[%emt 0:00:49]} 23. Be1 {[%emt 0:02:32]} Rhd8 {[%emt 0:06:15]} 24. h3 {[%emt 0:04:14]} Nh6 {[%emt 0:02:00]} 25. b4 {[%emt 0:01:53]} Rxd1 {[%emt 0:04:50]} 26. Qxd1 {[%emt 0:00:35]} Bb6 {[%emt 0:02:32]} 27. b5 {[%emt 0:01:28]} a5 {[%emt 0:01:05]} 28. Nd2 {[%emt 0:03:38]} Bd8 {[%emt 0:03:53]} 29. b6 {[%emt 0:03:21]} Bxb6 {[%emt 0:00:54]} 30. Nb3 {[%emt 0:00:43]} Nf7 {[%emt 0:03:01]} 31. Nxa5 {[%emt 0:03:14]} Rc5 {[%emt 0:05:15]} 32. Nxb7 {[%emt 0:06:11]} Kxb7 {[%emt 0:00:14]} 33. a5 {[%emt 0:00:09]} Rc6 {[%emt 0:00:37]} 34. Qa4 {[%emt 0:02:22]} Qd6 {[%emt 0:03:37]} 35. axb6 {[%emt 0:04:14]} Rxb6 {[%emt 0:00:26]} 36. Ra1 {[%emt 0:00:23]} 1-0

[Event "Polish Youth 1st League 2022"]
[Site "Lublin"]
[Date "2022.07.02"]
[Round "8.27"]
[White "Duda, Szymon"]
[Black "Karwot, Marek"]
[Result "1/2-1/2"]
[ECO "E68"]
[WhiteElo "1707"]
[BlackElo "1454"]
[Annotator "NA RC"]
[PlyCount "93"]
[EventDate "2022.06.24"]
[EventType "team-tourn"]
[EventCountry "POL"]
[SourceTitle "playchess.com"]
[Source "ChessBase"]
[SourceQuality "1"]
[TimeControl "40/5400+30:1800+30"]

1. d4 {[%emt 0:00:03]} Nf6 {[%emt 0:00:08]} 2. Nf3 {[%emt 0:00:13]} g6 {[%emt 0:00:34]} 3. g3 {[%emt 0:00:04]} Bg7 {[%emt 0:00:58]} 4. Bg2 {[%emt 0:00:04]} O-O {[%emt 0:01:29]} 5. O-O {[%emt 0:00:06]} d6 {[%emt 0:00:37]} 6. c4 {[%emt 0:00:26]} Nbd7 {[%emt 0:00:51]} 7. Nc3 {[%emt 0:00:34]} e5 {[%emt 0:03:44]} 8. e4 {[%emt 0:00:55]} a6 {[%emt 0:03:38]} 9. Qc2 {[%emt 0:06:10]} Re8 {[%emt 0:01:37]} 10. d5 {[%emt 0:01:46]} a5 {[%emt 0:02:06]} 11. h3 {[%emt 0:01:23]} Nc5 {[%emt 0:06:21]} 12. Be3 {[%emt 0:02:50]} Nfd7 {[%emt 0:04:15]} 13. b3 {[%emt 0:02:13]} Rf8 {[%emt 0:03:58]} 14. a3 {[%emt 0:11:55]} f5 {[%emt 0:07:26]} 15. Ne1 {[%emt 0:08:55]} f4 {[%emt 0:14:02]} 16. Bd2 {[%emt 0:06:41]} fxg3 {[%emt 0:04:34]} 17. fxg3 {[%emt 0:00:16]} Rxf1+ {[%emt 0:01:47]} 18. Kxf1 {[%emt 0:01:54]} Qf8+ {[%emt 0:02:08]} 19. Kg1 {[%emt 0:00:49]} Bh6 {[%emt 0:01:32]} 20. Rb1 {[%emt 0:00:54]} Bxd2 {[%emt 0:01:34]} 21. Qxd2 {[%emt 0:00:08]} Nf6 {[%emt 0:07:21]} 22. b4 {[%emt 0:03:21]} axb4 {[%emt 0:00:44]} 23. axb4 {[%emt 0:00:07]} Ncd7 {[%emt 0:01:07]} 24. Nd3 {[%emt 0:03:08]} b6 {[%emt 0:03:21]} 25. Qc1 {[%emt 0:14:07]} Ba6 {[%emt 0:03:30]} 26. b5 {[%emt 0:05:39]} Bb7 {[%emt 0:04:00]} 27. Ra1 {[%emt 0:01:40]} Kg7 {[%emt 0:01:22]} 28. Qb2 {[%emt 0:02:14]} h6 {[%emt 0:01:41]} 29. Rxa8 {[%emt 0:02:18]} Qxa8 {[%emt 0:00:19]} 30. Qa2 {[%emt 0:00:56]} Qxa2 {[%emt 0:01:10]} 31. Nxa2 {[%emt 0:00:06]} Nf8 {[%emt 0:01:29]} 32. Nab4 {[%emt 0:00:55]} N8h7 {[%emt 0:01:26]} 33. Kf2 {[%emt 0:08:01]} Kf7 {[%emt 0:02:57]} 34. Na6 {[%emt 0:04:08]} Ne8 {[%emt 0:00:54]} 35. h4 {[%emt 0:03:13]} Ke7 {[%emt 0:02:30]} 36. Bh3 {[%emt 0:00:41]} Nf8 {[%emt 0:02:01]} 37. Kf3 {[%emt 0:03:14]} Kd8 {[%emt 0:01:24]} 38. Nab4 {[%emt 0:01:32]} Ng7 {[%emt 0:01:01]} 39. Nf2 {[%emt 0:00:44]} h5 {[%emt 0:03:44]} 40. Nbd3 {[%emt 0:00:00]} Nh7 {[%emt 0:00:00]} 41. Ke3 {[%emt 0:05:27]} Bc8 {[%emt 0:12:16]} 42. Bxc8 {[%emt 0:01:18]} Kxc8 {[%emt 0:00:06]} 43. Kf3 {[%emt 0:01:04]} Kd7 {[%emt 0:05:22]} 44. Nh3 {[%emt 0:00:33]} Ke7 {[%emt 0:01:20]} 45. Ndf2 {[%emt 0:00:19]} Kf6 {[%emt 0:01:06]} 46. Nd3 {[%emt 0:00:48]} Ke7 {[%emt 0:01:09]} 47. Ndf2 {[%emt 0:00:57]} 1/2-1/2

[Event "Polish Youth 1st League 2022"]
[Site "Lublin"]
[Date "2022.07.02"]
[Round "8.28"]
[White "Niesporek, Franciszek"]
[Black "Wajda, Krzysztof"]
[Result "1-0"]
[ECO "C50"]
[WhiteElo "1332"]
[BlackElo "1494"]
[Annotator "NA RC"]
[PlyCount "103"]
[EventDate "2022.06.24"]
[EventType "team-tourn"]
[EventCountry "POL"]
[SourceTitle "playchess.com"]
[Source "ChessBase"]
[SourceQuality "1"]
[TimeControl "40/5400+30:1800+30"]

1. e4 {[%emt 0:00:02]} e5 {[%emt 0:00:05]} 2. Nf3 {[%emt 0:00:07]} Nc6 {[%emt 0:00:09]} 3. Bc4 {[%emt 0:00:18]} Bc5 {[%emt 0:00:21]} 4. O-O {[%emt 0:00:13]} d6 {[%emt 0:00:29]} 5. c3 {[%emt 0:00:35]} Nf6 {[%emt 0:00:39]} 6. d3 {[%emt 0:00:12]} h6 {[%emt 0:01:45]} 7. Bb3 {[%emt 0:00:22]} O-O {[%emt 0:00:38]} 8. h3 {[%emt 0:00:18]} Re8 {[%emt 0:01:14]} 9. Re1 {[%emt 0:00:38]} Bb6 {[%emt 0:03:24]} 10. a4 {[%emt 0:01:31]} Be6 {[%emt 0:02:19]} 11. Nbd2 {[%emt 0:02:47]} Bxb3 {[%emt 0:04:48]} 12. Qxb3 {[%emt 0:00:13]} Nh5 {[%emt 0:04:40]} 13. Nf1 {[%emt 0:04:50]} Qf6 {[%emt 0:02:30]} 14. Qd1 {[%emt 0:05:41]} g5 {[%emt 0:07:26]} 15. Be3 {[%emt 0:08:22]} Nf4 {[%emt 0:03:46]} 16. Ng3 {[%emt 0:02:57]} Qg6 {[%emt 0:06:09]} 17. Nh2 {[%emt 0:07:17]} a5 {[%emt 0:11:29]} 18. Bxb6 {[%emt 0:05:59]} cxb6 {[%emt 0:00:06]} 19. Qf3 {[%emt 0:00:39]} Ne7 {[%emt 0:04:43]} 20. Rad1 {[%emt 0:16:18]} f5 {[%emt 0:19:46]} 21. d4 {[%emt 0:02:46]} h5 {[%emt 0:05:04]} 22. dxe5 {[%emt 0:11:48]} dxe5 {[%emt 0:00:51]} 23. exf5 {[%emt 0:07:29]} Nxf5 {[%emt 0:00:31]} 24. Nxf5 {[%emt 0:00:09]} Qxf5 {[%emt 0:00:03]} 25. Qe4 {[%emt 0:01:09]} Qf6 {[%emt 0:07:08]} 26. Nf1 {[%emt 0:07:56]} Rf8 {[%emt 0:10:28]} 27. Rd2 {[%emt 0:06:36]} Rae8 {[%emt 0:01:24]} 28. Ne3 {[%emt 0:01:50]} Rd8 {[%emt 0:00:54]} 29. Red1 {[%emt 0:01:54]} Rxd2 {[%emt 0:01:05]} 30. Rxd2 {[%emt 0:00:04]} Rf7 {[%emt 0:00:11]} 31. Nc4 {[%emt 0:02:22]} Re7 {[%emt 0:01:05]} 32. Rd6 {[%emt 0:01:14]} Re6 {[%emt 0:00:18]} 33. Rxe6 {[%emt 0:01:28]} Qxe6 {[%emt 0:00:03]} 34. Nxe5 {[%emt 0:00:32]} Qd5 {[%emt 0:01:06]} 35. Qxd5+ {[%emt 0:00:29]} Nxd5 {[%emt 0:00:03]} 36. Kf1 {[%emt 0:00:38]} Kg7 {[%emt 0:00:21]} 37. Ke2 {[%emt 0:00:14]} Kf6 {[%emt 0:00:04]} 38. Nc4 {[%emt 0:00:05]} Ke6 {[%emt 0:01:29]} 39. g3 {[%emt 0:01:04]} g4 {[%emt 0:00:42]} 40. hxg4 {[%emt 0:00:00]} hxg4 {[%emt 0:00:00]} 41. Kd3 {[%emt 0:01:22]} Nc7 {[%emt 0:03:40]} 42. Nxb6 {[%emt 0:02:42]} Na6 {[%emt 0:01:04]} 43. Kd4 {[%emt 0:00:30]} Nb8 {[%emt 0:00:43]} 44. Nc4 {[%emt 0:02:12]} Nc6+ {[%emt 0:01:06]} 45. Ke4 {[%emt 0:00:15]} Kf6 {[%emt 0:01:54]} 46. Kf4 {[%emt 0:01:37]} Ke6 {[%emt 0:00:13]} 47. Ke4 {[%emt 0:03:22]} Kf6 {[%emt 0:00:44]} 48. Ne3 {[%emt 0:01:13]} Ne5 {[%emt 0:00:26]} 49. b4 {[%emt 0:02:36]} axb4 {[%emt 0:00:40]} 50. cxb4 {[%emt 0:00:08]} Ke6 {[%emt 0:00:22]} 51. b5 {[%emt 0:01:53]} Kd6 {[%emt 0:00:14]} 52. a5 {[%emt 0:01:07]} 1-0

[Event "Polish Youth 1st League 2022"]
[Site "Lublin"]
[Date "2022.07.02"]
[Round "8.29"]
[White "Czarnecka, Lidia"]
[Black "Bugaj, Hanna"]
[Result "1-0"]
[ECO "C11"]
[WhiteElo "1940"]
[BlackElo "1779"]
[Annotator "RC"]
[PlyCount "113"]
[EventDate "2022.06.24"]
[EventType "team-tourn"]
[EventCountry "POL"]
[SourceTitle "playchess.com"]
[Source "ChessBase"]
[SourceQuality "1"]
[TimeControl "40/5400+30:1800+30"]

1. e4 {[%emt 0:00:17]} e6 {[%emt 0:00:22]} 2. d4 {[%emt 0:01:02]} d5 {[%emt 0:00:13]} 3. Nc3 {[%emt 0:00:22]} Nf6 {[%emt 0:00:16]} 4. Bg5 {[%emt 0:01:30]} dxe4 {[%emt 0:00:25]} 5. Nxe4 {[%emt 0:00:51]} Be7 {[%emt 0:00:08]} 6. Bxf6 {[%emt 0:02:03]} gxf6 {[%emt 0:00:09]} 7. Nf3 {[%emt 0:00:56]} f5 {[%emt 0:01:07]} 8. Nc3 {[%emt 0:01:48]} a6 {[%emt 0:00:51]} 9. Qd2 {[%emt 0:09:26]} b5 {[%emt 0:05:53]} 10. O-O-O {[%emt 0:02:34]} Bb7 {[%emt 0:04:01]} 11. Qf4 {[%emt 0:04:39]} Qd6 {[%emt 0:07:03]} 12. Qe3 {[%emt 0:05:44]} Nd7 {[%emt 0:06:10]} 13. Bd3 {[%emt 0:03:07]} O-O-O {[%emt 0:03:21]} 14. Rhe1 {[%emt 0:01:46]} Bf6 {[%emt 0:05:21]} 15. Ne5 {[%emt 0:14:21]} Bxe5 {[%emt 0:03:39]} 16. dxe5 {[%emt 0:00:07]} Qb6 {[%emt 0:00:28]} 17. g3 {[%emt 0:05:13]} Qxe3+ {[%emt 0:14:20]} 18. Rxe3 {[%emt 0:00:11]} Nc5 {[%emt 0:00:21]} 19. b4 {[%emt 0:06:13]} Nxd3+ {[%emt 0:10:34]} 20. Rexd3 {[%emt 0:00:11]} Rxd3 {[%emt 0:01:08]} 21. Rxd3 {[%emt 0:00:05]} Rg8 {[%emt 0:00:39]} 22. Rd4 {[%emt 0:06:52]} Bf3 {[%emt 0:04:02]} 23. Kd2 {[%emt 0:02:40]} Bc6 {[%emt 0:11:13]} 24. Rh4 {[%emt 0:04:42]} Rg7 {[%emt 0:00:40]} 25. Ke3 {[%emt 0:01:23]} Kb7 {[%emt 0:01:48]} 26. Kd4 {[%emt 0:06:48]} Kb6 {[%emt 0:00:36]} 27. Ne2 {[%emt 0:02:33]} Bf3 {[%emt 0:02:09]} 28. Nf4 {[%emt 0:00:47]} Kc6 {[%emt 0:04:16]} 29. h3 {[%emt 0:03:44]} Bd1 {[%emt 0:01:05]} 30. c3 {[%emt 0:00:11]} Bf3 {[%emt 0:00:20]} 31. Rh6 {[%emt 0:00:59]} Bd1 {[%emt 0:02:42]} 32. Nd5 {[%emt 0:01:19]} Bc2 {[%emt 0:03:58]} 33. Nf6 {[%emt 0:02:07]} f4 {[%emt 0:02:23]} 34. gxf4 {[%emt 0:03:57]} Bf5 {[%emt 0:01:05]} 35. Ke3 {[%emt 0:01:01]} Bb1 {[%emt 0:00:54]} 36. a3 {[%emt 0:00:58]} Bf5 {[%emt 0:00:10]} 37. h4 {[%emt 0:01:33]} Bb1 {[%emt 0:00:27]} 38. Rh5 {[%emt 0:00:51]} Bf5 {[%emt 0:04:16]} 39. Rg5 {[%emt 0:00:11]} Rxg5 {[%emt 0:00:40]} 40. fxg5 {[%emt 0:00:00]} Bc2 {[%emt 0:00:00]} 41. Kd4 {[%emt 0:05:57]} Kb6 {[%emt 0:03:31]} 42. Ng8 {[%emt 0:00:48]} Bg6 {[%emt 0:01:35]} 43. Ne7 {[%emt 0:00:26]} Bh5 {[%emt 0:01:30]} 44. Ke4 {[%emt 0:00:28]} Bd1 {[%emt 0:01:46]} 45. Kf4 {[%emt 0:00:30]} a5 {[%emt 0:01:18]} 46. f3 {[%emt 0:01:04]} axb4 {[%emt 0:00:43]} 47. axb4 {[%emt 0:00:09]} Kb7 {[%emt 0:03:21]} 48. h5 {[%emt 0:00:28]} Bc2 {[%emt 0:01:01]} 49. g6 {[%emt 0:03:56]} fxg6 {[%emt 0:02:42]} 50. h6 {[%emt 0:00:35]} c6 {[%emt 0:01:05]} 51. Kg5 {[%emt 0:01:30]} Kc7 {[%emt 0:00:44]} 52. Kf6 {[%emt 0:04:50]} Kd7 {[%emt 0:00:16]} 53. f4 {[%emt 0:01:37]} Be4 {[%emt 0:09:38]} 54. Kf7 {[%emt 0:00:56]} Bd3 {[%emt 0:01:18]} 55. Ng8 {[%emt 0:00:57]} Kd8 {[%emt 0:01:49]} 56. Nf6 {[%emt 0:00:26]} g5 {[%emt 0:00:15]} 57. fxg5 {[%emt 0:00:05]} 1-0

[Event "Polish Youth 1st League 2022"]
[Site "Lublin"]
[Date "2022.07.02"]
[Round "8.30"]
[White "Sprzeczka, Emilia"]
[Black "Slusarczyk, Anna"]
[Result "1-0"]
[ECO "B22"]
[WhiteElo "1692"]
[BlackElo "1544"]
[Annotator "NA RC"]
[PlyCount "71"]
[EventDate "2022.06.24"]
[EventType "team-tourn"]
[EventCountry "POL"]
[SourceTitle "playchess.com"]
[Source "ChessBase"]
[SourceQuality "1"]
[TimeControl "40/5400+30:1800+30"]

1. e4 {[%emt 0:00:03]} c5 {[%emt 0:00:22]} 2. c3 {[%emt 0:00:10]} Nf6 {[%emt 0:00:04]} 3. e5 {[%emt 0:00:08]} Nd5 {[%emt 0:00:08]} 4. Nf3 {[%emt 0:00:09]} Nc6 {[%emt 0:00:37]} 5. Bc4 {[%emt 0:00:19]} Nb6 {[%emt 0:01:11]} 6. Bb3 {[%emt 0:00:22]} e6 {[%emt 0:01:00]} 7. d4 {[%emt 0:03:00]} cxd4 {[%emt 0:00:57]} 8. cxd4 {[%emt 0:00:07]} d6 {[%emt 0:00:57]} 9. O-O {[%emt 0:01:25]} Be7 {[%emt 0:03:38]} 10. Qe2 {[%emt 0:04:06]} O-O {[%emt 0:02:35]} 11. Nc3 {[%emt 0:07:00]} a6 {[%emt 0:07:51]} 12. a3 {[%emt 0:15:30]} Nd7 {[%emt 0:13:43]} 13. Bc2 {[%emt 0:10:44]} Qc7 {[%emt 0:07:39]} 14. Re1 {[%emt 0:24:13]} Rd8 {[%emt 0:05:49]} 15. Ng5 {[%emt 0:10:44]} Nf8 {[%emt 0:15:20]} 16. Qe4 {[%emt 0:04:42]} dxe5 {[%emt 0:08:11]} 17. dxe5 {[%emt 0:00:53]} Ng6 {[%emt 0:00:20]} 18. Nf3 {[%emt 0:01:18]} b5 {[%emt 0:01:14]} 19. Bg5 {[%emt 0:04:02]} Bb7 {[%emt 0:07:38]} 20. Bxe7 {[%emt 0:02:03]} Ncxe7 {[%emt 0:05:50]} 21. Qg4 {[%emt 0:02:21]} h6 {[%emt 0:04:13]} 22. Be4 {[%emt 0:02:36]} Rac8 {[%emt 0:03:48]} 23. Bxb7 {[%emt 0:00:28]} Qxb7 {[%emt 0:00:07]} 24. Rad1 {[%emt 0:01:30]} Nd5 {[%emt 0:04:13]} 25. Ne4 {[%emt 0:01:54]} Rc2 {[%emt 0:03:25]} 26. Nd4 {[%emt 0:01:12]} Rxb2 27. Nxe6 {[%emt 0:00:45]} fxe6 {[%emt 0:01:46]} 28. Qxg6 {[%emt 0:00:20]} Qf7 {[%emt 0:01:16]} 29. Qg3 {[%emt 0:01:09]} Rf8 {[%emt 0:00:18]} 30. f3 {[%emt 0:01:19]} Qa7+ {[%emt 0:00:33]} 31. Kh1 {[%emt 0:00:14]} Ne3 {[%emt 0:00:33]} 32. Nf6+ {[%emt 0:00:47]} Kh8 {[%emt 0:00:39]} 33. Rd7 {[%emt 0:00:27]} Qxd7 {[%emt 0:00:34]} 34. Nxd7 {[%emt 0:00:06]} Nxg2 {[%emt 0:00:30]} 35. Nxf8 {[%emt 0:00:23]} Nxe1 {[%emt 0:00:22]} 36. Qxe1 {[%emt 0:00:06]} 1-0

[Event "Polish Youth 1st League 2022"]
[Site "Lublin"]
[Date "2022.07.03"]
[Round "9.1"]
[White "Panek, Bartosz"]
[Black "Madej, Marek"]
[Result "1-0"]
[ECO "B47"]
[WhiteElo "2022"]
[BlackElo "1978"]
[Annotator "NA RC"]
[PlyCount "69"]
[EventDate "2022.06.24"]
[EventType "team-tourn"]
[EventCountry "POL"]
[SourceTitle "playchess.com"]
[Source "ChessBase"]
[SourceQuality "1"]
[TimeControl "40/5400+30:1800+30"]

1. e4 {[%emt 0:00:06]} c5 {[%emt 0:00:52]} 2. Nf3 {[%emt 0:00:06]} e6 {[%emt 0:00:21]} 3. d4 {[%emt 0:00:06]} cxd4 {[%emt 0:00:09]} 4. Nxd4 {[%emt 0:00:04]} Nc6 {[%emt 0:00:28]} 5. Nc3 {[%emt 0:00:07]} Qc7 {[%emt 0:00:34]} 6. Qd3 {[%emt 0:00:09]} a6 {[%emt 0:04:43]} 7. Nxc6 {[%emt 0:00:07]} bxc6 {[%emt 0:02:03]} 8. Qg3 {[%emt 0:00:06]} Qxg3 {[%emt 0:05:03]} 9. hxg3 {[%emt 0:00:05]} Rb8 {[%emt 0:01:43]} 10. b3 {[%emt 0:00:15]} Nf6 {[%emt 0:06:39]} 11. e5 {[%emt 0:00:12]} Ng4 {[%emt 0:06:22]} 12. f4 {[%emt 0:00:10]} f6 {[%emt 0:10:39]} 13. Be2 $14 {[%emt 0:05:11]} Bb4 {[%emt 0:00:34]} 14. Bd2 {[%emt 0:00:06]} Ne3 {[%emt 0:00:20]} 15. Rc1 {[%emt 0:00:10]} fxe5 {[%emt 0:01:11]} 16. fxe5 {[%emt 0:00:06]} ({Much worse is} 16. Bxe3 Bxc3+ 17. Bd2 Bxd2+ 18. Kxd2 exf4 $15) ({Much weaker is} 16. Kf2 Nd5 17. Nxd5 Bxd2 $17) 16... O-O {[%emt 0:12:36]} 17. Ne4 {[%emt 0:05:47]} Rf5 {[%emt 0:09:47]} (17... c5 $16 {was worth a try.}) 18. c3 {[%emt 0:07:41]} Nxg2+ {[%emt 0:11:57]} 19. Kd1 {[%emt 0:00:08]} Ba3 {[%emt 0:00:03]} 20. Bf1 {[%emt 0:02:50]} Bxc1 {[%emt 0:01:07]} 21. Bxc1 {[%emt 0:03:40]} Rxe5 {[%emt 0:06:20]} 22. Bxg2 {[%emt 0:00:10]} Ra5 {[%emt 0:00:13]} 23. Nd6 {[%emt 0:05:07]} Rxa2 {[%emt 0:02:04]} 24. Be4 {[%emt 0:00:13]} g6 {[%emt 0:02:33]} 25. Rf1 {[%emt 0:02:45]} a5 {[%emt 0:03:50]} 26. Rf7 {[%emt 0:03:06]} Ra1 {[%emt 0:04:40]} 27. Kc2 {[%emt 0:01:33]} Ra2+ {[%emt 0:00:47]} 28. Kd3 {[%emt 0:02:28]} Ba6+ {[%emt 0:00:11]} 29. Kd4 {[%emt 0:02:23]} e5+ {[%emt 0:06:31]} 30. Kxe5 {[%emt 0:00:06]} Re8+ {[%emt 0:00:10]} 31. Kd4 {[%emt 0:00:30]} Re2 {[%emt 0:00:50]} 32. Rxd7 {[%emt 0:00:39]} c5+ {[%emt 0:00:34]} 33. Kd5 {[%emt 0:01:18]} R8xe4 {[%emt 0:00:32]} 34. Nxe4 {[%emt 0:00:04]} Bd3 {[%emt 0:00:24]} 35. Nf6+ {[%emt 0:00:08]} 1-0